fUST/lending_fUST_20240109
["ID","MTS","AMOUNT","RATE_DAILY","PERIOD"]
[310894560,1704803437913,-272.90141687,0.00030986,4]
[310894561,1704803437923,-264.29610974,0.00030986,4]
[310894562,1704803437932,-262.62468436,0.00030986,4]
[310894563,1704803437941,-510.52531038,0.00030986,4]
[310894564,1704803437952,-256.10714716,0.00030986,4]
[310894565,1704803437963,-155.13630738,0.00030986,2]
[310894566,1704803437973,-2617.40317928,0.00030986,4]
[310894567,1704803437984,-285.00006318,0.00030986,4]
[310894568,1704803437994,-156.75763692,0.00030986,4]
[310894569,1704803438005,-204.91963394,0.00030986,4]
[310894570,1704803438015,-364.77566931,0.00030986,4]
[310894571,1704803438024,-867.7482349,0.00030986,4]
[310894572,1704803438034,-270.29974291,0.00030986,4]
[310894573,1704803438043,-401.30177937,0.00030986,4]
[310894574,1704803438052,-234.48957017,0.00030986,4]
[310894575,1704803438061,-156.95483705,0.00030986,4]
[310894576,1704803438071,-234.1695543,0.00030986,4]
[310894577,1704803438080,-957.54075731,0.00030986,4]
[310894578,1704803438089,-648.43872078,0.00030986,4]
[310894579,1704803438098,-450.99443313,0.00030986,4]
[310894580,1704803438108,-391.73507155,0.00030986,4]
[310894581,1704803438117,-643.18308154,0.00030986,4]
[310894582,1704803438126,-500.0,0.00030986,4]
[310894583,1704803438135,-327.55821008,0.00030986,4]
[310894584,1704803438145,-500.0,0.00030986,2]
[310894585,1704803438155,-500.0,0.00030986,2]
[310894586,1704803438165,-179.80116427,0.00030986,2]
[310894587,1704803438174,-167.80146728,0.00030986,2]
[310894588,1704803438184,-501.76423646,0.00030986,2]
[310894589,1704803438195,-627.54713836,0.00030986,2]
[310894590,1704803438205,-1382.92859819,0.00030986,3]
[310894591,1704803438214,-155.43819691,0.00030987,4]
[310894592,1704803438222,-946.23744718,0.00030987,4]
[310894593,1704803438231,-901.85472152,0.00030987,4]
[310894594,1704803438240,-282.05090519,0.00030987,2]
[310894595,1704803438249,-623554.09565498,0.00030987,4]
[310894596,1704803438259,-167.46226827,0.00030987,10]
[310894597,1704803438268,-50000.0,0.00030988,3]
[310894598,1704803438277,-78576.22443893,0.00030988,3]
[310894599,1704803438286,-50000.0,0.00030988,2]
[310894600,1704803438296,-50000.0,0.00030988,2]
[310894601,1704803438305,-50000.0,0.00030988,2]
[310894602,1704803438314,-50000.0,0.00030988,2]
[310894603,1704803438323,-44999.93814655,0.00030988,2]
[310894604,1704803438337,-5000.06185345,0.00030988,2]
[310894605,1704803438347,-50000.0,0.00030988,2]
[310894606,1704803438356,-72121.72165037,0.00030988,2]
[310894607,1704803438365,-5000.0,0.00030988,7]
[310894608,1704803438375,-17082.48719445,0.00030988,3]
[310894609,1704803438384,-160.0,0.00030996,10]
[310894610,1704803438394,-1094.59579196,0.00030996,4]
[310894611,1704803438403,-154.89005733,0.00030997,4]
[310894612,1704803438413,-433.72625318,0.00030997,4]
[310894613,1704803438423,-485.57302674,0.00030997,4]
[310894614,1704803438432,-247.02179605,0.00030997,4]
[310894615,1704803438441,-3000.0,0.00030997,2]
[310894616,1704803438450,-238.99172533,0.00030997,4]
[310894617,1704803438460,-611.2969959,0.00030997,4]
[310894618,1704803438469,-261.20103296,0.00030997,4]
[310894619,1704803438478,-934.49173072,0.00030997,4]
[310894620,1704803438487,-160.00795214,0.00030997,4]
[310894621,1704803438496,-2099.91652736,0.00030997,4]
[310894622,1704803438505,-155.30505783,0.00030997,4]
[310894623,1704803438515,-4383.09340567,0.00030997,2]
[310894624,1704803438524,-875.7975897,0.00030997,4]
[310894625,1704803438534,-2767.17739009,0.00030997,4]
[310894626,1704803438543,-156.47437255,0.00030997,4]
[310894627,1704803438552,-155.12309599,0.00030997,4]
[310894628,1704803438561,-346.30140295,0.00030997,4]
[310894629,1704803438571,-211.40269121,0.00030997,4]
[310894630,1704803438580,-12484.10320981,0.00030997,2]
[310894631,1704803438589,-227.03546583,0.00030997,4]
[310894632,1704803438598,-2809.982769,0.00030997,4]
[310894633,1704803438608,-260.24433646,0.00030997,4]
[310894634,1704803438617,-522.08796133,0.00030997,4]
[310894635,1704803438627,-237.51946768,0.00030997,4]
[310894636,1704803438636,-294.91251114,0.00030997,4]
[310894637,1704803438645,-313.3544748,0.00030997,4]
[310894638,1704803438654,-208.00198312,0.00030997,2]
[310894639,1704803438665,-328.13847834,0.00030997,4]
[310894640,1704803438674,-156.36978952,0.00030997,4]
[310894641,1704803438683,-243.7257195,0.00030997,4]
[310894642,1704803438692,-155.38548407,0.00030997,4]
[310894643,1704803438702,-180.87501707,0.00030997,2]
[310894644,1704803438711,-680.74929033,0.00030998,4]
[310894645,1704803438720,-1017.14884446,0.00030998,4]
[310894646,1704803438730,-786.33036182,0.00030998,4]
[310894647,1704803438739,-31215.79311705,0.00030998,4]
[310894648,1704803438748,-17877.32704479,0.00031,4]
[310894649,1704803438760,-1299.30570456,0.00031,4]
[310894650,1704803438771,-7970.06641857,0.00031,4]
[310894651,1704803438782,-312.34037596,0.00031,4]
[310894652,1704803438793,-5138.61999987,0.00031,4]
[310894653,1704803438809,-34577.45172186,0.00031,4]
[310894657,1704803440820,-6709.40211479,0.00031,4]
[310894658,1704803440832,-22911.8745154,0.00031,4]
[310894659,1704803440843,-5157.11750955,0.00031,4]
[310894660,1704803440854,-1989.09093411,0.00031,4]
[310894661,1704803440862,-155.16185748,0.00031,4]
[310894662,1704803440871,-1791.28024279,0.00031,2]
[310894663,1704803440885,-1995.08482909,0.00031,2]
[310894852,1704804638183,-613.86507578,0.00027846,2]
[310894854,1704804638193,-439.34960942,0.00027846,2]
[310894856,1704804638202,-154.8915759,0.00027846,4]
[310894858,1704804638211,-4709.99124251,0.00027847,2]
[310894860,1704804638220,-2561.25383839,0.00027848,2]
[310894863,1704804638230,-1153.42330477,0.00027878,2]
[310894865,1704804638239,-175.417069,0.00028299,2]
[310894866,1704804638249,-1136.98500583,0.00028879,2]
[310894869,1704804638258,-203.12354189,0.00028897,2]
[310894871,1704804638267,-646.67116524,0.00029272,2]
[310894873,1704804638276,-2000.0,0.0003,2]
[310894874,1704804638285,-463.25005188,0.00030875,4]
[310894876,1704804638294,-174.03475596,0.00030876,5]
[310894878,1704804638303,-5763.58,0.00030976,3]
[310894880,1704804638313,-6916.3,0.00030977,3]
[310894883,1704804638322,-160.00795214,0.00030983,4]
[310894884,1704804638331,-261.20103296,0.00030983,4]
[310894887,1704804638341,-238.99172533,0.00030983,4]
[310894889,1704804638351,-611.2969959,0.00030983,4]
[310894891,1704804638360,-934.49173072,0.00030983,4]
[310894893,1704804638369,-3000.0,0.00030983,2]
[310894895,1704804638378,-247.02179605,0.00030983,4]
[310894897,1704804638387,-433.72625318,0.00030983,4]
[310894899,1704804638399,-1094.59579196,0.00030983,4]
[310894901,1704804638408,-485.57302674,0.00030983,4]
[310894903,1704804638417,-154.89005733,0.00030983,4]
[310894905,1704804638426,-155.30505783,0.00030984,4]
[310894907,1704804638435,-2099.91652736,0.00030984,4]
[310894909,1704804638444,-1017.14884446,0.00030985,4]
[310894911,1704804638453,-156.36978952,0.00030985,4]
[310894913,1704804638462,-208.00198312,0.00030985,2]
[310894915,1704804638472,-243.7257195,0.00030985,4]
[310894917,1704804638481,-328.13847834,0.00030985,4]
[310894919,1704804638490,-237.51946768,0.00030985,4]
[310894920,1704804638499,-313.3544748,0.00030985,4]
[310894922,1704804638507,-294.91251114,0.00030985,4]
[310894925,1704804638517,-260.24433646,0.00030985,4]
[310894926,1704804638527,-522.08796133,0.00030985,4]
[310894929,1704804638536,-2809.982769,0.00030985,4]
[310894931,1704804638546,-227.03546583,0.00030985,4]
[310894933,1704804638555,-211.40269121,0.00030985,4]
[310894935,1704804638565,-155.12309599,0.00030985,4]
[310894937,1704804638573,-2767.17739009,0.00030985,4]
[310894939,1704804638582,-156.47437255,0.00030985,4]
[310894941,1704804638592,-12484.10320981,0.00030985,2]
[310894943,1704804638602,-7985.3418189,0.00030985,4]
[310894945,1704804638611,-346.30140295,0.00030985,4]
[310894947,1704804638621,-875.7975897,0.00030985,4]
[310894949,1704804638630,-4383.09340567,0.00030985,2]
[310894950,1704804638639,-680.74929033,0.00030986,4]
[310894952,1704804638651,-786.33036182,0.00030986,4]
[310894954,1704804638660,-155.38548407,0.00030986,4]
[310894956,1704804638669,-450.22815708,0.00030986,4]
[310894958,1704804638678,-453.90710455,0.00030986,4]
[310894960,1704804638687,-620.66865756,0.00030986,4]
[310894962,1704804638696,-167.88645924,0.00030986,4]
[310894964,1704804638705,-450.99443314,0.00030986,4]
[310894966,1704804638714,-439.28299685,0.00030986,2]
[310894968,1704804638723,-500.0,0.00030986,2]
[310894970,1704804638732,-467.4610271,0.00030986,2]
[310894972,1704804638742,-251.32317735,0.00030986,2]
[310894975,1704804638752,-180.87501707,0.00030987,2]
[310894977,1704804638763,-10353.8900935,0.00030987,4]
[310895018,1704804640993,-4802.98,0.00030975,3]
[310895020,1704804641002,-11533.27,0.00030987,4]
[310895363,1704805833630,-1465.85199932,0.00027719,2]
[310895365,1704805833640,-166.57052583,0.00027719,2]
[310895367,1704805833649,-2092.57766549,0.0002772,2]
[310895369,1704805833658,-352.07693534,0.0002772,2]
[310895371,1704805833667,-492.92287462,0.00027721,2]
[310895373,1704805833680,-120.94220116,0.00027721,2]
[310895375,1704805833689,-439.35135649,0.00027722,2]
[310895377,1704805833699,-4916.51301772,0.00027722,2]
[310895379,1704805833708,-2134.37819866,0.00027722,2]
[310895381,1704805833718,-154.8915759,0.00027722,4]
[310895384,1704805833727,-2702.10242443,0.00027723,5]
[310895386,1704805833737,-2310.5420709,0.00027732,2]
[310895387,1704805833748,-219.03069179,0.00027735,2]
[310895390,1704805833759,-175.417069,0.00028217,2]
[310895391,1704805833769,-302.3989547,0.00028267,2]
[310895393,1704805833779,-254.63929308,0.00028887,2]
[310895395,1704805833790,-463.25005188,0.0003,4]
[310895397,1704805833800,-2955.55767527,0.00030055,10]
[310895399,1704805833811,-5000.0,0.00030137,2]
[310895402,1704805833824,-231.7699577,0.00030363,4]
[310895404,1704805833834,-200.0,0.00030626,15]
[310895405,1704805833844,-150.89437394,0.00030693,120]
[310895407,1704805833854,-182.89819927,0.00030887,2]
[310895409,1704805833864,-11295.12696486,0.00030887,2]
[310895412,1704805833873,-4154.22,0.00030975,3]
[310895415,1704805833884,-3461.85,0.00030975,3]
[310895418,1704805833893,-2685.41889532,0.00030983,4]
[310895421,1704805833903,-8486.32779,0.00030984,2]
[310895424,1704805833912,-521.52789577,0.00030984,4]
[310895428,1704805833922,-6722.93832886,0.00030985,2]
[310895431,1704805833931,-155.26625919,0.00030985,4]
[310895433,1704805833941,-1989.13674223,0.00030985,4]
[310895436,1704805833950,-579.59992972,0.00030985,4]
[310895439,1704805833959,-155.23141833,0.00030985,4]
[310895442,1704805833968,-250.35796176,0.00030985,4]
[310895445,1704805833978,-244.75799094,0.00030985,4]
[310895448,1704805833987,-298.40079274,0.00030985,4]
[310895451,1704805833996,-3580.53429443,0.00030985,2]
[310895454,1704805834005,-608.38872869,0.00030985,4]
[310895456,1704805834015,-2928.19800494,0.00030985,4]
[310895459,1704805834024,-1396.26351521,0.00030985,4]
[310895462,1704805834034,-617.18632887,0.00030985,2]
[310895465,1704805834043,-1250.39757004,0.00030985,4]
[310895468,1704805834052,-155.63510002,0.00030985,4]
[310895470,1704805834061,-1263.99402759,0.00030985,4]
[310895472,1704805834073,-2279.92181058,0.00030985,4]
[310895474,1704805834083,-2847.27743909,0.00030985,4]
[310895476,1704805834092,-641.96499442,0.00030985,4]
[310895477,1704805834101,-500.0,0.00030986,2]
[310895478,1704805834110,-196.98962189,0.00030986,4]
[310895484,1704805834255,-560.10039221,0.00030986,4]
[310895486,1704805834267,-403.40050716,0.00030986,4]
[310895487,1704805834276,-500.0,0.00030986,4]
[310895489,1704805834285,-275.64962102,0.00030986,4]
[310895491,1704805834297,-255.28017687,0.00030986,2]
[310895492,1704805834308,-2800.08740782,0.00030986,4]
[310895495,1704805834345,-7798.82571163,0.00030986,4]
[310895497,1704805834356,-17602.45957085,0.00030987,4]
[310895670,1704805839141,-4709.99124251,0.00027719,2]
[310895672,1704805839151,-23251.15731209,0.00030987,4]
[310895679,1704805839206,-763.62687611,0.00030987,4]
[310895688,1704805839275,-7910.0,0.00030987,4]
[310895690,1704805839286,-2193.90727738,0.00030987,4]
[310896210,1704805844117,-1543.82992309,0.00030987,4]
[310896211,1704805844266,-2611.28453228,0.00030987,4]
[310896212,1704805844389,-1727.63067512,0.00030987,4]
[310896213,1704805844401,-1474.26014049,0.00030987,4]
[310896214,1704805844415,-1232.05644815,0.00030987,4]
[310896215,1704805844426,-4707.72490897,0.00030987,4]
[310896409,1704805846297,-2884.87,0.00030977,3]
[310896411,1704805846307,-454610.47538129,0.00030987,4]
[310896413,1704805846317,-20817.62020463,0.00030987,14]
[310896415,1704805846330,-209.44263366,0.00030987,2]
[310896417,1704805846339,-342.22178639,0.00030987,4]
[310896419,1704805846349,-155.04248475,0.00030987,4]
[310896421,1704805846358,-1522.97169013,0.00030987,4]
[310896423,1704805846367,-5146.93346093,0.00030987,4]
[310896425,1704805846377,-13432.44330007,0.00030988,3]
[310896427,1704805846386,-27167.79664755,0.00030988,3]
[310896428,1704805846396,-10753.04655895,0.00030988,3]
[310896429,1704805846405,-12484.39840241,0.00030988,3]
[310896430,1704805846414,-5000.0,0.00030988,7]
[310896431,1704805846428,-7375.98699576,0.00030988,3]
[310896432,1704805846437,-48312.04547782,0.00031,4]
[310896433,1704805846446,-4214.39982739,0.00031,2]
[310896434,1704805846456,-398.7163831,0.00031056,4]
[310896435,1704805846465,-922.69287281,0.00031056,7]
[310896436,1704805846474,-115.07310696,0.00031057,2]
[310896437,1704805846484,-694.71880818,0.0003114,2]
[310896438,1704805846493,-150.89437394,0.0003132,30]
[310896439,1704805846502,-346.60573793,0.000318,3]
[310896440,1704805846511,-1500.0,0.000318,2]
[310896441,1704805846523,-906.0,0.000318,2]
[310896442,1704805846532,-235205.92886275,0.000318,2]
[310896443,1704805846956,-29995.26947649,0.000318,2]
[310897169,1704807038802,-352.07693534,0.00027836,2]
[310897171,1704807038812,-154.8915759,0.00027837,4]
[310897173,1704807038821,-1112.0110415,0.00027837,2]
[310897175,1704807038831,-439.35135649,0.00027838,2]
[310897177,1704807038841,-930.46331126,0.000297,2]
[310897179,1704807038851,-1348.06550088,0.00030395,2]
[310897182,1704807038864,-8456.76342565,0.00030395,2]
[310897184,1704807038875,-4709.72157263,0.00030395,2]
[310897189,1704807038920,-5740.44809731,0.00030395,2]
[310897191,1704807038930,-496.1966346,0.00030397,5]
[310897193,1704807038940,-150.89437394,0.00030528,120]
[310897195,1704807038949,-353.717799,0.000306,2]
[310897197,1704807038959,-695.47796133,0.00030984,5]
[310897199,1704807038968,-4213.85400146,0.00030986,4]
[310897201,1704807038978,-2939.52886967,0.00030986,4]
[310897203,1704807038991,-1856.8031322,0.00030986,3]
[310897206,1704807039001,-612.87407394,0.00030986,4]
[310897208,1704807039010,-794.60566554,0.00030987,4]
[310897211,1704807039019,-157.02749759,0.00030987,4]
[310897214,1704807039030,-10561.18078957,0.00030987,14]
[310897217,1704807039038,-250.0,0.00031,2]
[310897219,1704807039048,-155.0,0.00031,2]
[310897222,1704807039057,-5000.0,0.00031081,7]
[310897224,1704807039066,-10581.78305271,0.00031081,3]
[310897226,1704807039074,-4437.71187142,0.00031081,3]
[310897228,1704807039084,-1669.49,0.0003109,3]
[310897230,1704807039093,-2404.06,0.000311,3]
[310897232,1704807039102,-2003.38,0.000311,3]
[310897234,1704807039111,-500.0,0.00031109,4]
[310897236,1704807039120,-527.13872167,0.00031109,4]
[310897238,1704807039130,-194.53161623,0.00031109,4]
[310897240,1704807039139,-213.65723564,0.00031109,4]
[310897242,1704807039148,-525.92622414,0.00031109,2]
[310897244,1704807039157,-200.34044019,0.00031109,2]
[310897246,1704807039166,-188.26414151,0.00031109,2]
[310897265,1704807039325,-3289.80780033,0.0003111,4]
[310897267,1704807039338,-1267.27673596,0.0003111,4]
[310897269,1704807039350,-4535.39999999,0.0003111,4]
[310897452,1704807041354,-7722.29730033,0.0003111,4]
[310897453,1704807041366,-1401.49993163,0.0003111,4]
[310897594,1704807043388,-4709.47522424,0.0003111,4]
[310897754,1704807048132,-1391.24,0.000311,3]
[310897755,1704807048142,-340814.13213959,0.0003111,4]
[310897756,1704807048154,-1559.28139729,0.00031111,3]
[310897758,1704807048163,-150.89437394,0.00031151,30]
[310897760,1704807048173,-1145.2332729,0.00031241,30]
[310897762,1704807048182,-1510.822088,0.000313,2]
[310897763,1704807048192,-150.89437394,0.00031787,7]
[310897766,1704807048201,-2713.55973559,0.000318,7]
[310897769,1704807048210,-459.97137997,0.000318,4]
[310897772,1704807048220,-5146.93346093,0.000318,4]
[310897775,1704807048229,-451.47973434,0.000318,3]
[310897778,1704807048238,-1094.97348376,0.000318,2]
[310897780,1704807048247,-167.46050468,0.00031833,4]
[310897783,1704807048258,-188.20519877,0.00031833,4]
[310897785,1704807048270,-151.0,0.00031834,2]
[310897786,1704807048279,-150.114,0.00031834,2]
[310897788,1704807048288,-250.0,0.00031834,2]
[310897790,1704807048296,-43972.07039952,0.00031899,2]
[310897792,1704807048305,-2000.0,0.000319,2]
[310897795,1704807048315,-2000.0,0.0003191,2]
[310897798,1704807048324,-2000.0,0.0003192,2]
[310897799,1704807048333,-2000.0,0.0003193,2]
[310897800,1704807048342,-2000.0,0.0003194,2]
[310897801,1704807048351,-2000.0,0.0003195,2]
[310897802,1704807048361,-2000.0,0.0003196,2]
[310897803,1704807048370,-2000.0,0.0003197,2]
[310897804,1704807048380,-2000.0,0.0003198,2]
[310897805,1704807048389,-9837.67824196,0.00031988,4]
[310897806,1704807048398,-2000.0,0.0003199,2]
[310897807,1704807048407,-4035.23913107,0.00031997,4]
[310897808,1704807048416,-642.55748837,0.00031997,4]
[310897809,1704807048426,-165.45859284,0.00031997,4]
[310897810,1704807048435,-521.52789577,0.00031997,4]
[310897811,1704807048444,-155.15118501,0.00031997,4]
[310897812,1704807048453,-155.26964091,0.00031997,4]
[310897813,1704807048463,-233.82229576,0.00031998,4]
[310897814,1704807048472,-3744.08354986,0.00031998,2]
[310897815,1704807048481,-160.0,0.00031999,10]
[310897816,1704807048490,-2473.22439999,0.00031999,15]
[310897817,1704807048500,-211.92,0.00031999,2]
[310897818,1704807048509,-211.92,0.00031999,2]
[310897819,1704807048518,-586090.98613576,0.00032,15]
[310897820,1704807048540,-1398.2938,0.00032,15]
[310898020,1704808238733,-886.35,0.00027947,2]
[310898021,1704808238749,-225.6610415,0.00027947,2]
[310898022,1704808238759,-439.35135649,0.00027948,2]
[310898023,1704808238768,-154.8915759,0.00027949,4]
[310898024,1704808238778,-1290.72817531,0.00027949,2]
[310898025,1704808238787,-975.795941,0.0002795,2]
[310898026,1704808238797,-3737.09785385,0.0002795,2]
[310898027,1704808238807,-764.75455677,0.00028796,5]
[310898028,1704808238817,-175.113313,0.00029676,2]
[310898029,1704808238827,-6263.06851656,0.000298,2]
[310898030,1704808238836,-620.30887418,0.000299,2]
[310898031,1704808238845,-263.1920427,0.00029968,2]
[310898032,1704808238855,-356.582183,0.0003006,2]
[310898033,1704808238865,-356.582183,0.0003006,2]
[310898034,1704808238874,-356.582183,0.0003006,2]
[310898035,1704808238884,-356.582183,0.0003006,2]
[310898036,1704808238893,-356.582183,0.0003006,2]
[310898037,1704808238902,-5000.0,0.00030137,2]
[310898038,1704808238912,-150.89437394,0.00030872,120]
[310898039,1704808238922,-323.28359059,0.00031111,3]
[310898040,1704808238931,-2336.8912052,0.00031139,3]
[310898041,1704808238944,-644.77830775,0.00031141,3]
[310898042,1704808238954,-5000.0,0.00031155,7]
[310898043,1704808238964,-3174.53491581,0.00031161,3]
[310898044,1704808238974,-150.89437394,0.00031502,30]
[310898045,1704808238984,-150.184,0.00031728,2]
[310898046,1704808238994,-150.0,0.00031728,2]
[310898047,1704808239004,-150.0,0.00031728,2]
[310898048,1704808239014,-225.08432184,0.000318,4]
[310898049,1704808239024,-451.47973434,0.000318,3]
[310898050,1704808239034,-990.0,0.000318,2]
[310898051,1704808239045,-525.72,0.000318,2]
[310898052,1704808239055,-350.10950284,0.00031897,2]
[310898053,1704808239066,-350.10950284,0.00031898,2]
[310898054,1704808239076,-350.10950284,0.00031899,2]
[310898055,1704808239086,-350.10950284,0.00031899,2]
[310898056,1704808239095,-350.10950284,0.000319,2]
[310898057,1704808239106,-2520.47,0.00031986,3]
[310898058,1704808239115,-1586.09,0.00031987,3]
[310898059,1704808239127,-3024.57,0.00031987,3]
[310898060,1704808239136,-2683.28735004,0.00031994,2]
[310898061,1704808239147,-463.25005188,0.00031994,4]
[310898062,1704808239158,-4453.17730401,0.00031995,4]
[310898063,1704808239168,-294.24481386,0.00031995,4]
[310898064,1704808239178,-176.44509333,0.00031995,4]
[310898065,1704808239188,-7860.14278183,0.00031995,4]
[310898066,1704808239200,-260.15058301,0.00031995,4]
[310898067,1704808239210,-521.52789577,0.00031995,4]
[310898068,1704808239219,-162.64737815,0.00031995,4]
[310898069,1704808239229,-245.69098286,0.00031995,4]
[310898070,1704808239239,-560.14633467,0.00031995,4]
[310898071,1704808239250,-1250.03351849,0.00031995,4]
[310898072,1704808239261,-2128.89317806,0.00031995,4]
[310898073,1704808239271,-3920.68542553,0.00031995,4]
[310898074,1704808239281,-225.916595,0.00031995,4]
[310898075,1704808239291,-535.24292672,0.00031995,4]
[310898076,1704808239302,-334.06145547,0.00031995,2]
[310898077,1704808239312,-225.39695321,0.00031995,2]
[310898078,1704808239322,-469.37613453,0.00031996,2]
[310898079,1704808239331,-2099.1643818,0.00031996,4]
[310898080,1704808239342,-363739.88913207,0.00031996,4]
[310898081,1704808239353,-3928.64933035,0.00031997,4]
[310898082,1704808239363,-20701.79734183,0.00031997,2]
[310898083,1704808239373,-3319.56134004,0.00031997,4]
[310898084,1704808239384,-2069.11950844,0.00031997,4]
[310898085,1704808239394,-510.09073531,0.00031998,2]
[310898086,1704808239403,-288.52918038,0.00031998,4]
[310898087,1704808239414,-1995.08482909,0.00031998,2]
[310898088,1704808239424,-160.0,0.00031999,10]
[310898089,1704808239435,-242733.02086541,0.00032,15]
[310898098,1704808241491,-42159.21399262,0.00032,15]
[310898099,1704808241502,-2547.97130832,0.00032,15]
[310898161,1704808243552,-1135.0,0.0003199,3]
[310898167,1704808243609,-965.39,0.0003199,3]
[310898169,1704808243618,-1479.61017428,0.00032,15]
[310898291,1704808246590,-1826.13453981,0.00032,15]
[310898294,1704808246606,-87573.05112642,0.00032,15]
[310898296,1704808246618,-915.71746682,0.00032,15]
[310898299,1704808246630,-1668.73677338,0.00032,15]
[310898306,1704808246688,-9695.50912731,0.00032,15]
[310898494,1704808977242,-180.689809,0.00027016,2]
[310898495,1704808977274,-173.46221664,0.00027016,2]
[310898496,1704808977675,-7.22759236,0.00027016,2]
[310898497,1704808977709,-180.689809,0.00027016,2]
[310898498,1704808977742,-180.689809,0.00027016,2]
[310898499,1704808977780,162.6208281,0.00027016,2]
[310898500,1704808977817,-18.0689809,0.00027016,2]
[310898501,1704808999829,-168.913135,0.00026866,2]
[310898502,1704808999862,-154.8915759,0.00027016,2]
[310898503,1704808999892,-1486.57840483,0.00027016,2]
[310898504,1704808999943,-36.9465942,0.00027016,2]
[310898505,1704809000105,1773.43652153,0.00027016,2]
[310898506,1704809000143,-1810.38311573,0.00027016,2]
[310898507,1704809000623,-154.8915759,0.00024314,2]
[310898508,1704809000656,-4845.1084241,0.00027016,2]
[310898509,1704809000887,-1849.1440056,0.00027016,2]
[310898510,1704809001513,3150.8559944,0.00027016,2]
[310898511,1704809001545,60.47839433,0.00027016,2]
[310898512,1704809007449,-442.62092786,0.00027015,2]
[310898513,1704809007584,-9.03308016,0.00027015,2]
[310898514,1704809007852,-154.8915759,0.00027016,2]
[310898515,1704809012582,-1089.77082067,0.00027014,2]
[310898516,1704809012702,-22.24022083,0.00027014,2]
[310898517,1704809015990,-3147.10770096,0.00027016,2]
[310898518,1704809016308,-64.22668777,0.00027016,2]
[310898519,1704809016355,-2837.63962145,0.00027016,2]
[310898520,1704809017298,245.24139174,0.00027016,2]
[310898521,1704809017337,644.74460243,0.00027016,2]
[310898522,1704809021207,-180.0,0.00027015,2]
[310898523,1704809021248,-184.52560723,0.00027016,2]
[310898524,1704809021382,-7.43929811,0.00027016,2]
[310898525,1704809021587,-154.8915759,0.00027016,2]
[310898526,1704809022169,156.88621066,0.00024314,2]
[310898527,1704809026512,-1089.77082067,0.00024803,2]
[310898528,1704809026760,-22.24022083,0.00024803,2]
[310898529,1704809041982,-155.49472363,0.00027016,2]
[310898530,1704809042018,-2053.8566354,0.00027016,2]
[310898531,1704809042105,-45.08880325,0.00027016,2]
[310898532,1704809052734,-1089.77082067,0.00024801,2]
[310898533,1704809052853,-22.24022083,0.00024801,2]
[310898534,1704809059827,-5000.0,0.00026553,2]
[310898535,1704809060103,-5000.0,0.00026553,2]
[310898536,1704809060452,-5000.0,0.00026553,2]
[310898537,1704809060524,-5000.0,0.00026553,2]
[310898538,1704809060578,-4900.0,0.00026553,2]
[310898539,1704809060611,-100.0,0.00027016,2]
[310898540,1704809060790,-54.8915759,0.00027016,2]
[310898541,1704809065233,-430.56432936,0.00027015,2]
[310898542,1704809065470,-8.78702713,0.00027015,2]
[310898543,1704809072679,-1089.77082067,0.00024801,2]
[310898544,1704809072786,-22.24022083,0.00024801,2]
[310898545,1704809085031,-155.84233439,0.00024803,2]
[310898546,1704809085064,-241.88315331,0.00026548,2]
[310898547,1704809085241,-8.11684669,0.00026548,2]
[310898548,1704809092593,-1089.77082067,0.00024792,2]
[310898549,1704809092916,-22.24022083,0.00024792,2]
[310898550,1704809110640,-1089.77082067,0.00024792,2]
[310898551,1704809110768,-22.24022083,0.00024792,2]
[310898552,1704809116343,-338.03144802,0.00026544,2]
[310898553,1704809116541,-6.89860098,0.00026544,2]
[310898554,1704809126567,-1089.77082067,0.00024792,2]
[310898555,1704809126836,-22.24022083,0.00024792,2]
[310898556,1704809150690,-1089.77082067,0.00024788,2]
[310898557,1704809150859,-22.24022083,0.00024788,2]
[310898558,1704809168657,-1089.77082067,0.00024788,2]
[310898559,1704809169109,-22.24022083,0.00024788,2]
[310898560,1704809173314,-5000.0,0.00024788,2]
[310898561,1704809173395,-949.37033553,0.00024788,2]
[310898604,1704809186838,-562.66478072,0.00024781,2]
[310898605,1704809186902,-11.48295471,0.00024781,2]
[310898606,1704809188757,551.18182601,0.00024781,2]
[310898607,1704809188789,562.66478072,0.00024781,2]
[310898608,1704809189138,-4835.5237288,0.00024781,2]
[310898610,1704809215190,-3811.53613188,0.0002478,2]
[310898611,1704809215511,-77.78645167,0.0002478,2]